[Event "*** SCC Grand Prix: Titled Tuesday Blitz"]
[Site "Chess.com"]
[Date "2020.10.13"]
[Round "7"]
[White "QuintilianoR"]
[Black "lucachess49"]
[Result "1-0"]
[WhiteElo "2621"]
[BlackElo "2405"]
[TimeControl "180+1"]
[EndTime "11:17:01 PDT"]
[Termination "QuintilianoR won on time"]

1. d4 {[%clk 0:03:00.9]} 1... Nf6 {[%clk 0:02:58.8]} 2. c4 {[%clk 0:03:00.7]}
2... e6 {[%clk 0:02:59]} 3. Nf3 {[%clk 0:03:01]} 3... a6 {[%clk 0:02:58.8]} 4.
e3 {[%clk 0:02:57.9]} 4... d5 {[%clk 0:02:57.2]} 5. Nc3 {[%clk 0:02:57.5]} 5...
c5 {[%clk 0:02:53.6]} 6. cxd5 {[%clk 0:02:54]} 6... exd5 {[%clk 0:02:35.5]} 7.
Be2 {[%clk 0:02:51]} 7... Nc6 {[%clk 0:02:35.7]} 8. O-O {[%clk 0:02:49.6]} 8...
Bg4 {[%clk 0:02:22.8]} 9. dxc5 {[%clk 0:02:29.9]} 9... Bxc5 {[%clk 0:02:23.7]}
10. h3 {[%clk 0:02:28.8]} 10... Be6 {[%clk 0:02:17.5]} 11. b3 {[%clk 0:02:27.9]}
11... O-O {[%clk 0:02:17.2]} 12. Bb2 {[%clk 0:02:27.3]} 12... Qa5 {[%clk
0:02:10.4]} 13. a3 {[%clk 0:02:21.3]} 13... Qc7 {[%clk 0:02:04.9]} 14. b4 {[%clk
0:02:17.8]} 14... Be7 {[%clk 0:01:44.7]} 15. Rc1 {[%clk 0:02:16.6]} 15... Rfd8
{[%clk 0:01:44.5]} 16. Nd4 {[%clk 0:02:08.9]} 16... Rac8 {[%clk 0:01:23.6]} 17.
Na4 {[%clk 0:01:45]} 17... Ne4 {[%clk 0:01:15.1]} 18. Nxc6 {[%clk 0:01:27.5]}
18... bxc6 {[%clk 0:01:11.5]} 19. Bxa6 {[%clk 0:00:54.1]} 19... Ra8 {[%clk
0:01:06.7]} 20. Be2 {[%clk 0:00:53.7]} 20... Bh4 {[%clk 0:00:56.6]} 21. Nc5
{[%clk 0:00:51.1]} 21... Bxh3 {[%clk 0:00:29.5]} 22. gxh3 {[%clk 0:00:26.2]}
22... Bxf2+ {[%clk 0:00:12.9]} 23. Rxf2 {[%clk 0:00:25.1]} 23... Nxf2 {[%clk
0:00:13.1]} 24. Kxf2 {[%clk 0:00:21]} 24... Qh2+ {[%clk 0:00:13]} 25. Ke1 {[%clk
0:00:21.2]} 25... Re8 {[%clk 0:00:11.3]} 26. Qd4 {[%clk 0:00:20.3]} 26... f6
{[%clk 0:00:09.5]} 27. Kd2 {[%clk 0:00:17.7]} 27... Rad8 {[%clk 0:00:05.6]} 28.
Nd3 {[%clk 0:00:16]} 28... Re4 {[%clk 0:00:05.1]} 29. Qb6 {[%clk 0:00:14.5]}
29... Rde8 {[%clk 0:00:04.7]} 30. Bd4 {[%clk 0:00:14.1]} 30... f5 {[%clk
0:00:02.8]} 31. Rxc6 {[%clk 0:00:13.8]} 31... f4 {[%clk 0:00:02.5]} 32. Qc5
{[%clk 0:00:11]} 32... fxe3+ {[%clk 0:00:02.5]} 33. Kd1 {[%clk 0:00:11.3]} 33...
Qg1+ {[%clk 0:00:02.4]} 34. Ne1 {[%clk 0:00:11.5]} 34... Rf4 {[%clk 0:00:01.5]}
35. Qxd5+ {[%clk 0:00:11.2]} 35... Kh8 {[%clk 0:00:01]} 36. Qe5 {[%clk 0:00:11]}
1-0

[Event "*** SCC Grand Prix: Titled Tuesday Blitz"]
[Site "Chess.com"]
[Date "2020.10.13"]
[Round "7"]
[White "brunomorado"]
[Black "Semen16"]
[Result "0-1"]
[WhiteElo "2309"]
[BlackElo "2471"]
[TimeControl "180+1"]
[EndTime "11:17:02 PDT"]
[Termination "Semen16 won by checkmate"]

1. d4 {[%clk 0:03:00]} 1... d5 {[%clk 0:02:59.5]} 2. Nc3 {[%clk 0:03:00.3]} 2...
Nf6 {[%clk 0:02:59.1]} 3. Bg5 {[%clk 0:03:00.4]} 3... c6 {[%clk 0:02:54]} 4. Qd3
{[%clk 0:02:59.2]} 4... g6 {[%clk 0:02:49.5]} 5. e4 {[%clk 0:02:58.6]} 5... dxe4
{[%clk 0:02:46.5]} 6. Nxe4 {[%clk 0:02:59.5]} 6... Nxe4 {[%clk 0:02:46]} 7. Qxe4
{[%clk 0:03:00.4]} 7... Bf5 {[%clk 0:02:46.1]} 8. Qe5 {[%clk 0:02:52.4]} 8... f6
{[%clk 0:02:34.6]} 9. Bxf6 {[%clk 0:02:46.3]} 9... Nd7 {[%clk 0:02:34.4]} 10.
Bxh8 {[%clk 0:02:46.8]} 10... Nxe5 {[%clk 0:02:34.2]} 11. Bxe5 {[%clk
0:02:47.7]} 11... Bxc2 {[%clk 0:02:28]} 12. Nf3 {[%clk 0:02:42.8]} 12... Qa5+
{[%clk 0:02:26.5]} 13. Nd2 {[%clk 0:02:38.1]} 13... Bh6 {[%clk 0:02:25]} 14. f4
{[%clk 0:02:37.8]} 14... O-O-O {[%clk 0:02:13.5]} 15. a3 {[%clk 0:02:36.7]}
15... Qd5 {[%clk 0:02:02.6]} 16. Kf2 {[%clk 0:02:22.5]} 16... e6 {[%clk
0:01:54.2]} 17. Bc4 {[%clk 0:02:22]} 17... Qd7 {[%clk 0:01:53.9]} 18. Rac1
{[%clk 0:02:21.1]} 18... Bf5 {[%clk 0:01:52.8]} 19. g4 {[%clk 0:01:59.2]} 19...
Bxg4 {[%clk 0:01:42.1]} 20. Ne4 {[%clk 0:01:58.8]} 20... Qe7 {[%clk 0:01:36.5]}
21. Bf6 {[%clk 0:01:54.5]} 21... Qf7 {[%clk 0:01:30.6]} 22. Rhg1 {[%clk
0:01:11.2]} 22... Bg7 {[%clk 0:01:23.4]} 23. Rxg4 {[%clk 0:00:49.3]} 23... Bxf6
{[%clk 0:01:23.1]} 24. Rd1 {[%clk 0:00:40.5]} 24... h5 {[%clk 0:01:18.8]} 25.
Rg2 {[%clk 0:00:39.3]} 25... Bxd4+ {[%clk 0:01:16.8]} 26. Kf3 {[%clk 0:00:38.9]}
26... c5 {[%clk 0:01:00.7]} 27. Ng5 {[%clk 0:00:38.5]} 27... Qf6 {[%clk
0:00:58]} 28. Nxe6 {[%clk 0:00:34.3]} 28... Rd6 {[%clk 0:00:57.2]} 29. Re2
{[%clk 0:00:28.2]} 29... a6 {[%clk 0:00:53.8]} 30. a4 {[%clk 0:00:26.7]} 30...
Kb8 {[%clk 0:00:52.9]} 31. a5 {[%clk 0:00:26]} 31... Qf5 {[%clk 0:00:48.3]} 32.
Ng5 {[%clk 0:00:14.5]} 32... Rd8 {[%clk 0:00:43.9]} 33. h3 {[%clk 0:00:11.9]}
33... Rf8 {[%clk 0:00:43.2]} 34. Ne6 {[%clk 0:00:07.9]} 34... Qxh3+ {[%clk
0:00:41.7]} 35. Ke4 {[%clk 0:00:07.8]} 35... Qf5+ {[%clk 0:00:38.1]} 36. Kf3
{[%clk 0:00:06.2]} 36... Qg4+ {[%clk 0:00:38.3]} 37. Ke4 {[%clk 0:00:04.2]}
37... Rf5 {[%clk 0:00:24.6]} 38. Rdd2 {[%clk 0:00:03.2]} 38... g5 {[%clk
0:00:23.2]} 39. Rg2 {[%clk 0:00:03.1]} 39... Rxf4+ {[%clk 0:00:23.1]} 40. Nxf4
{[%clk 0:00:03]} 40... Qxf4+ {[%clk 0:00:24]} 41. Kd5 {[%clk 0:00:03.9]} 41...
Qe5# {[%clk 0:00:24]} 0-1

[Event "*** SCC Grand Prix: Titled Tuesday Blitz"]
[Site "Chess.com"]
[Date "2020.10.13"]
[Round "7"]
[White "Jospem"]
[Black "TigrVShlyape"]
[Result "0-1"]
[WhiteElo "2934"]
[BlackElo "2855"]
[TimeControl "180+1"]
[EndTime "11:17:03 PDT"]
[Termination "TigrVShlyape won on time"]

1. e4 {[%clk 0:03:00.9]} 1... g6 {[%clk 0:02:56]} 2. d4 {[%clk 0:03:00.9]} 2...
Bg7 {[%clk 0:02:56.2]} 3. Nf3 {[%clk 0:02:59.7]} 3... d6 {[%clk 0:02:55.9]} 4.
Bc4 {[%clk 0:03:00]} 4... Nf6 {[%clk 0:02:53.5]} 5. Qe2 {[%clk 0:02:57.5]} 5...
Nc6 {[%clk 0:02:42.7]} 6. h3 {[%clk 0:02:55.8]} 6... O-O {[%clk 0:02:39.8]} 7.
O-O {[%clk 0:02:55.2]} 7... d5 {[%clk 0:02:38.1]} 8. exd5 {[%clk 0:02:54.3]}
8... Nxd5 {[%clk 0:02:39]} 9. c3 {[%clk 0:02:53]} 9... Qd6 {[%clk 0:02:29.7]}
10. Nbd2 {[%clk 0:02:37.8]} 10... Bf5 {[%clk 0:02:20.2]} 11. Ne4 {[%clk
0:02:27.9]} 11... Bxe4 {[%clk 0:02:17.9]} 12. Qxe4 {[%clk 0:02:28.8]} 12... e6
{[%clk 0:02:17.9]} 13. Bg5 {[%clk 0:02:15.6]} 13... Nce7 {[%clk 0:02:11]} 14.
Rfe1 {[%clk 0:02:02.8]} 14... Rab8 {[%clk 0:02:02.2]} 15. Bb3 {[%clk 0:02:01.9]}
15... b5 {[%clk 0:02:01.7]} 16. Rad1 {[%clk 0:01:49.6]} 16... h6 {[%clk
0:01:53.2]} 17. Bc1 {[%clk 0:01:45.7]} 17... a5 {[%clk 0:01:39.7]} 18. a3 {[%clk
0:01:42]} 18... c5 {[%clk 0:01:32.5]} 19. Ne5 {[%clk 0:01:33.5]} 19... c4 {[%clk
0:01:26.8]} 20. Bc2 {[%clk 0:01:33.2]} 20... b4 {[%clk 0:01:27.2]} 21. axb4
{[%clk 0:01:33]} 21... axb4 {[%clk 0:01:27]} 22. Bd2 {[%clk 0:01:27.6]} 22...
bxc3 {[%clk 0:01:26.4]} 23. bxc3 {[%clk 0:01:28.5]} 23... Qc7 {[%clk 0:01:23.3]}
24. h4 {[%clk 0:01:25.2]} 24... h5 {[%clk 0:01:16.1]} 25. g4 {[%clk 0:01:24.2]}
25... hxg4 {[%clk 0:01:15.2]} 26. Nxg4 {[%clk 0:01:13.7]} 26... Nf5 {[%clk
0:01:06.9]} 27. h5 {[%clk 0:01:10.8]} 27... gxh5 {[%clk 0:01:01.4]} 28. Ne5
{[%clk 0:00:40.5]} 28... Rb2 {[%clk 0:01:00.6]} 29. Rc1 {[%clk 0:00:34.9]} 29...
Ra8 {[%clk 0:00:59.6]} 30. Kh1 {[%clk 0:00:34.3]} 30... Raa2 {[%clk 0:00:58.8]}
31. Rg1 {[%clk 0:00:33.9]} 31... Nf6 {[%clk 0:00:57.5]} 32. Qf4 {[%clk
0:00:20.4]} 32... Rxc2 {[%clk 0:00:56]} 33. Rxg7+ {[%clk 0:00:21]} 33... Nxg7
{[%clk 0:00:54.2]} 34. Rg1 {[%clk 0:00:18.9]} 34... Qb7+ {[%clk 0:00:51.3]} 35.
Rg2 {[%clk 0:00:14.9]} 35... Ne8 {[%clk 0:00:42.4]} 36. Be3 {[%clk 0:00:09.8]}
36... Qb1+ {[%clk 0:00:40.9]} 37. Kh2 {[%clk 0:00:09.3]} 37... f6 {[%clk
0:00:39]} 38. Ng6 {[%clk 0:00:04.6]} 38... Ra1 {[%clk 0:00:33.4]} 39. Qh6 {[%clk
0:00:04.7]} 39... Qh1+ {[%clk 0:00:29.7]} 40. Kg3 {[%clk 0:00:05]} 40... Rg1
{[%clk 0:00:27.4]} 41. Qh8+ {[%clk 0:00:03.1]} 41... Kf7 {[%clk 0:00:27.2]} 42.
Qf8+ {[%clk 0:00:01.2]} 42... Kxg6 {[%clk 0:00:27.1]} 43. Kf3+ {[%clk
0:00:01.8]} 43... Qxg2+ {[%clk 0:00:26.9]} 0-1

[Event "*** SCC Grand Prix: Titled Tuesday Blitz"]
[Site "Chess.com"]
[Date "2020.10.13"]
[Round "7"]
[White "Kildepiotr"]
[Black "ThePatrick27"]
[Result "1-0"]
[WhiteElo "2660"]
[BlackElo "2533"]
[TimeControl "180+1"]
[EndTime "11:17:04 PDT"]
[Termination "Kildepiotr won by resignation"]

1. Nf3 {[%clk 0:03:00.9]} 1... Nf6 {[%clk 0:02:58.4]} 2. g3 {[%clk 0:03:00.8]}
2... g6 {[%clk 0:02:56.3]} 3. Bg2 {[%clk 0:03:01.2]} 3... Bg7 {[%clk 0:02:56.4]}
4. O-O {[%clk 0:03:01.7]} 4... O-O {[%clk 0:02:54]} 5. d4 {[%clk 0:03:02.2]}
5... d6 {[%clk 0:02:52]} 6. Nbd2 {[%clk 0:03:01.9]} 6... Nc6 {[%clk 0:02:49.4]}
7. e4 {[%clk 0:03:01.7]} 7... e5 {[%clk 0:02:44.2]} 8. dxe5 {[%clk 0:03:02.6]}
8... dxe5 {[%clk 0:02:36.1]} 9. c3 {[%clk 0:03:02.4]} 9... Qd3 {[%clk
0:02:28.3]} 10. Re1 {[%clk 0:03:01.8]} 10... Rd8 {[%clk 0:02:23.6]} 11. Bf1
{[%clk 0:03:01.6]} 11... Qd6 {[%clk 0:02:21.3]} 12. Qc2 {[%clk 0:02:59.6]} 12...
Bg4 {[%clk 0:02:13.4]} 13. Nc4 {[%clk 0:02:58.7]} 13... Qe7 {[%clk 0:02:11]} 14.
Nfd2 {[%clk 0:02:49.5]} 14... h5 {[%clk 0:02:01.4]} 15. b4 {[%clk 0:02:41.8]}
15... a6 {[%clk 0:01:58.4]} 16. Ne3 {[%clk 0:02:40.2]} 16... Be6 {[%clk
0:01:57.8]} 17. a4 {[%clk 0:02:39.3]} 17... h4 {[%clk 0:01:54.9]} 18. Ndc4
{[%clk 0:02:31.1]} 18... hxg3 {[%clk 0:01:53.3]} 19. hxg3 {[%clk 0:02:30.3]}
19... Ng4 {[%clk 0:01:48.7]} 20. Bg2 {[%clk 0:02:21.1]} 20... Nf6 {[%clk
0:01:38.7]} 21. Bd2 {[%clk 0:02:12.6]} 21... Rd7 {[%clk 0:01:33.3]} 22. b5
{[%clk 0:02:10.4]} 22... axb5 {[%clk 0:01:30.9]} 23. axb5 {[%clk 0:02:10.1]}
23... Rxa1 {[%clk 0:01:23.7]} 24. Rxa1 {[%clk 0:02:11]} 24... Nd8 {[%clk
0:01:20.7]} 25. Nxe5 {[%clk 0:02:09.8]} 25... Rd6 {[%clk 0:00:57.5]} 26. N3c4
{[%clk 0:02:02.8]} 26... Bxc4 {[%clk 0:00:55.5]} 27. Nxc4 {[%clk 0:02:02.8]}
27... Re6 {[%clk 0:00:53.3]} 28. e5 {[%clk 0:02:02.6]} 28... Ng4 {[%clk
0:00:48]} 29. Bh3 {[%clk 0:01:43.3]} 29... Nxe5 {[%clk 0:00:37.3]} 30. Bxe6
{[%clk 0:01:42.7]} 30... Nf3+ {[%clk 0:00:35.8]} 31. Kg2 {[%clk 0:01:40]} 31...
Qxe6 {[%clk 0:00:34.5]} 32. Qd3 {[%clk 0:01:24.2]} 32... Nh4+ {[%clk 0:00:10.5]}
33. gxh4 {[%clk 0:01:23.1]} 33... Qg4+ {[%clk 0:00:09.8]} 34. Kf1 {[%clk
0:01:22.6]} 34... Ne6 {[%clk 0:00:10.3]} 35. Be3 {[%clk 0:01:08.6]} 35... Qxh4
{[%clk 0:00:09.1]} 36. Ke2 {[%clk 0:00:59.9]} 36... Qg4+ {[%clk 0:00:09]} 37.
Kd2 {[%clk 0:00:59.6]} 37... Qf3 {[%clk 0:00:09]} 38. Kc2 {[%clk 0:00:52.1]}
38... b6 {[%clk 0:00:09]} 39. Nd2 {[%clk 0:00:42.3]} 39... Qh5 {[%clk
0:00:07.9]} 40. Ra8+ {[%clk 0:00:37.8]} 40... Kh7 {[%clk 0:00:07.3]} 41. Qc4
{[%clk 0:00:37.1]} 41... Qf5+ {[%clk 0:00:05.3]} 42. Kb2 {[%clk 0:00:37.1]}
42... Qh3 {[%clk 0:00:02.7]} 43. Qd5 {[%clk 0:00:33.1]} 43... Bh6 {[%clk
0:00:02.6]} 44. Ra1 {[%clk 0:00:29.9]} 44... Bxe3 {[%clk 0:00:02.1]} 45. Rh1
{[%clk 0:00:29.7]} 1-0

[Event "*** SCC Grand Prix: Titled Tuesday Blitz"]
[Site "Chess.com"]
[Date "2020.10.13"]
[Round "7"]
[White "MVM2008"]
[Black "AttilaTurzo"]
[Result "0-1"]
[WhiteElo "2187"]
[BlackElo "2395"]
[TimeControl "180+1"]
[EndTime "11:17:06 PDT"]
[Termination "AttilaTurzo won on time"]

1. e4 {[%clk 0:03:00.9]} 1... c5 {[%clk 0:02:58.1]} 2. Nf3 {[%clk 0:03:00.7]}
2... Nc6 {[%clk 0:02:58.6]} 3. Bb5 {[%clk 0:02:58.9]} 3... g6 {[%clk 0:02:58.3]}
4. O-O {[%clk 0:02:56.4]} 4... Bg7 {[%clk 0:02:58.3]} 5. c3 {[%clk 0:02:52.7]}
5... Nf6 {[%clk 0:02:58.3]} 6. Re1 {[%clk 0:02:49.3]} 6... O-O {[%clk
0:02:56.3]} 7. d4 {[%clk 0:02:45.7]} 7... cxd4 {[%clk 0:02:56.7]} 8. cxd4 {[%clk
0:02:46.6]} 8... d5 {[%clk 0:02:57.1]} 9. e5 {[%clk 0:02:42.2]} 9... Ne4 {[%clk
0:02:57.2]} 10. Nc3 {[%clk 0:02:39]} 10... Nxc3 {[%clk 0:02:53.4]} 11. bxc3
{[%clk 0:02:38.6]} 11... Bg4 {[%clk 0:02:51]} 12. h3 {[%clk 0:02:28.8]} 12...
Bxf3 {[%clk 0:02:50.7]} 13. Qxf3 {[%clk 0:02:29.6]} 13... e6 {[%clk 0:02:43.4]}
14. g3 {[%clk 0:02:00]} 14... Rc8 {[%clk 0:02:39.9]} 15. h4 {[%clk 0:01:51.7]}
15... a6 {[%clk 0:02:40.2]} 16. Bd3 {[%clk 0:01:40.6]} 16... Na5 {[%clk
0:02:38.2]} 17. h5 {[%clk 0:01:21.5]} 17... Rxc3 {[%clk 0:02:35.4]} 18. h6
{[%clk 0:01:15.1]} 18... Bh8 {[%clk 0:02:33]} 19. Bd2 {[%clk 0:00:59]} 19... Rc6
{[%clk 0:02:24.7]} 20. Rab1 {[%clk 0:00:32.7]} 20... b5 {[%clk 0:02:23.3]} 21.
a4 {[%clk 0:00:27.2]} 21... bxa4 {[%clk 0:02:23.4]} 22. Rb4 {[%clk 0:00:18.8]}
22... Nc4 {[%clk 0:02:03.7]} 23. Bxc4 {[%clk 0:00:14.2]} 23... Rxc4 {[%clk
0:02:04.6]} 24. Rxc4 {[%clk 0:00:14.5]} 24... dxc4 {[%clk 0:02:05.5]} 25. Qg4
{[%clk 0:00:08.7]} 25... Qd5 {[%clk 0:01:55.6]} 26. Bg5 {[%clk 0:00:05.6]} 26...
c3 {[%clk 0:01:45]} 27. Qf4 {[%clk 0:00:03.9]} 27... f5 {[%clk 0:00:25.8]} 28.
exf6 {[%clk 0:00:04.1]} 28... c2 {[%clk 0:00:22.5]} 29. f7+ {[%clk 0:00:03.4]}
29... Rxf7 {[%clk 0:00:22.3]} 30. Qb8+ {[%clk 0:00:03.5]} 30... Rf8 {[%clk
0:00:22.1]} 31. Qc7 {[%clk 0:00:03.4]} 31... Qxg5 {[%clk 0:00:19.5]} 32. Qxc2
{[%clk 0:00:03.3]} 32... Qe7 {[%clk 0:00:17.4]} 33. d5 {[%clk 0:00:03]} 33...
Bf6 {[%clk 0:00:12]} 34. Rxe6 {[%clk 0:00:02.5]} 34... Qd7 {[%clk 0:00:12.1]}
35. Qe4 {[%clk 0:00:02.7]} 35... a3 {[%clk 0:00:11.1]} 36. Qd3 {[%clk
0:00:02.3]} 36... a2 {[%clk 0:00:10.3]} 37. Qa3 {[%clk 0:00:02.1]} 37... a1=Q+
{[%clk 0:00:10.2]} 0-1

[Event "*** SCC Grand Prix: Titled Tuesday Blitz"]
[Site "Chess.com"]
[Date "2020.10.13"]
[Round "7"]
[White "PSvidler"]
[Black "GM_Levan_Pantsulaia"]
[Result "0-1"]
[WhiteElo "2895"]
[BlackElo "2825"]
[TimeControl "180+1"]
[EndTime "11:17:08 PDT"]
[Termination "GM_Levan_Pantsulaia won by resignation"]

1. c4 {[%clk 0:03:00.9]} 1... c5 {[%clk 0:02:59]} 2. g3 {[%clk 0:03:00.5]} 2...
g6 {[%clk 0:02:57.4]} 3. Bg2 {[%clk 0:03:00.5]} 3... Bg7 {[%clk 0:02:58]} 4. Nc3
{[%clk 0:03:00.6]} 4... Nc6 {[%clk 0:02:58]} 5. b3 {[%clk 0:02:58.8]} 5... Nh6
{[%clk 0:02:49.9]} 6. Bb2 {[%clk 0:02:50.3]} 6... Nf5 {[%clk 0:02:48.8]} 7. e3
{[%clk 0:02:49.4]} 7... e6 {[%clk 0:02:43.9]} 8. Nge2 {[%clk 0:02:49.1]} 8...
O-O {[%clk 0:02:40.4]} 9. O-O {[%clk 0:02:48.8]} 9... b6 {[%clk 0:02:35.2]} 10.
Na4 {[%clk 0:02:29.7]} 10... Bxb2 {[%clk 0:02:29.7]} 11. Nxb2 {[%clk 0:02:29.4]}
11... Bb7 {[%clk 0:02:30.3]} 12. Nc3 {[%clk 0:02:20.7]} 12... Qc7 {[%clk
0:02:15.8]} 13. Qe2 {[%clk 0:02:16.7]} 13... a6 {[%clk 0:02:06]} 14. Rac1 {[%clk
0:02:16.4]} 14... Rad8 {[%clk 0:02:00.7]} 15. Rfd1 {[%clk 0:02:15.5]} 15... Ne5
{[%clk 0:01:56.5]} 16. d4 {[%clk 0:02:11.9]} 16... Bxg2 {[%clk 0:01:51.7]} 17.
Kxg2 {[%clk 0:02:11.9]} 17... Qb7+ {[%clk 0:01:40.2]} 18. d5 {[%clk 0:02:09]}
18... f6 {[%clk 0:01:32.9]} 19. Nd3 {[%clk 0:02:05.4]} 19... Nf7 {[%clk
0:01:28.8]} 20. Rb1 {[%clk 0:01:56.1]} 20... Kg7 {[%clk 0:01:25.9]} 21. b4
{[%clk 0:01:55.8]} 21... cxb4 {[%clk 0:01:21.6]} 22. Rxb4 {[%clk 0:01:55.4]}
22... a5 {[%clk 0:01:22.1]} 23. Rb2 {[%clk 0:01:51.8]} 23... Qc7 {[%clk
0:01:20.8]} 24. Rc1 {[%clk 0:01:15]} 24... Rc8 {[%clk 0:01:10.2]} 25. Nb5 {[%clk
0:01:13]} 25... Qb7 {[%clk 0:01:06.4]} 26. e4 {[%clk 0:01:12.9]} 26... exd5
{[%clk 0:01:02.4]} 27. cxd5 {[%clk 0:01:11.3]} 27... Rxc1 {[%clk 0:00:59.8]} 28.
Nxc1 {[%clk 0:01:11.2]} 28... N5d6 {[%clk 0:00:53.9]} 29. f3 {[%clk 0:01:09.4]}
29... Rc8 {[%clk 0:00:47.3]} 30. Nd3 {[%clk 0:00:58.1]} 30... Nxb5 {[%clk
0:00:44]} 31. Rxb5 {[%clk 0:00:57.9]} 31... Rc3 {[%clk 0:00:43.1]} 32. e5 {[%clk
0:00:54.4]} 32... fxe5 {[%clk 0:00:41.2]} 33. Nf2 {[%clk 0:00:33.2]} 33... Rc5
{[%clk 0:00:36.9]} 34. Ne4 {[%clk 0:00:31.9]} 34... Rxd5 {[%clk 0:00:34.1]} 35.
Rb2 {[%clk 0:00:25.8]} 35... Qc6 {[%clk 0:00:28.1]} 36. Rc2 {[%clk 0:00:25.4]}
36... Qe6 {[%clk 0:00:25.3]} 37. a4 {[%clk 0:00:23.8]} 37... Rd4 {[%clk
0:00:25.4]} 38. Qb5 {[%clk 0:00:23.3]} 38... Rb4 {[%clk 0:00:23.6]} 39. Qd3
{[%clk 0:00:22]} 39... Rxa4 {[%clk 0:00:18.9]} 40. Rc7 {[%clk 0:00:21]} 40...
Rd4 {[%clk 0:00:19.3]} 41. Qb5 {[%clk 0:00:20.4]} 41... a4 {[%clk 0:00:18.2]}
42. Ra7 {[%clk 0:00:20.2]} 42... Qb3 {[%clk 0:00:16.5]} 43. Qe2 {[%clk
0:00:16.2]} 43... a3 {[%clk 0:00:16.8]} 44. Ng5 {[%clk 0:00:16.1]} 44... Qb2
{[%clk 0:00:15.8]} 0-1

[Event "*** SCC Grand Prix: Titled Tuesday Blitz"]
[Site "Chess.com"]
[Date "2020.10.13"]
[Round "7"]
[White "Margarita2907"]
[Black "Kotofeyca"]
[Result "0-1"]
[WhiteElo "2166"]
[BlackElo "2346"]
[TimeControl "180+1"]
[EndTime "11:17:09 PDT"]
[Termination "Kotofeyca won by resignation"]

1. e4 {[%clk 0:03:00.9]} 1... c5 {[%clk 0:02:59.5]} 2. Nf3 {[%clk 0:03:00.5]}
2... d6 {[%clk 0:02:59.8]} 3. d4 {[%clk 0:02:59.5]} 3... cxd4 {[%clk 0:03:00.7]}
4. Nxd4 {[%clk 0:03:00.1]} 4... Nf6 {[%clk 0:03:01.4]} 5. Nc3 {[%clk 0:02:59.9]}
5... a6 {[%clk 0:03:02]} 6. Be2 {[%clk 0:02:57.7]} 6... e5 {[%clk 0:03:01.9]} 7.
Nb3 {[%clk 0:02:56.4]} 7... Be7 {[%clk 0:03:02.4]} 8. O-O {[%clk 0:02:55.1]}
8... O-O {[%clk 0:03:02.9]} 9. Be3 {[%clk 0:02:50.5]} 9... Be6 {[%clk
0:03:01.3]} 10. Qd3 {[%clk 0:02:43.1]} 10... b5 {[%clk 0:03:00.8]} 11. Nd5
{[%clk 0:02:41.4]} 11... Bxd5 {[%clk 0:02:58.3]} 12. exd5 {[%clk 0:02:41.3]}
12... Nbd7 {[%clk 0:02:58.2]} 13. a4 {[%clk 0:02:39.9]} 13... bxa4 {[%clk
0:02:50.1]} 14. Rxa4 {[%clk 0:02:37.4]} 14... Nb6 {[%clk 0:02:50.6]} 15. Bxb6
{[%clk 0:02:26.8]} 15... Qxb6 {[%clk 0:02:51.5]} 16. Rxa6 {[%clk 0:02:17.9]}
16... Rxa6 {[%clk 0:02:37.3]} 17. Qxa6 {[%clk 0:02:18.2]} 17... Qxa6 {[%clk
0:02:38.2]} 18. Bxa6 {[%clk 0:02:18.1]} 18... Nxd5 {[%clk 0:02:39.1]} 19. c3
{[%clk 0:02:10.6]} 19... Rb8 {[%clk 0:02:29.7]} 20. Bc4 {[%clk 0:02:09.6]} 20...
Nb6 {[%clk 0:02:23.1]} 21. Bd3 {[%clk 0:02:07.4]} 21... Na4 {[%clk 0:02:20.4]}
22. Bc2 {[%clk 0:02:03.5]} 22... Nxb2 {[%clk 0:02:18.6]} 23. Ra1 {[%clk
0:01:52.5]} 23... Rc8 {[%clk 0:02:08.4]} 24. Ra2 {[%clk 0:01:39.9]} 24... Nc4
{[%clk 0:02:04.6]} 25. Ra7 {[%clk 0:01:38.9]} 25... Kf8 {[%clk 0:02:03.6]} 26.
Bd3 {[%clk 0:01:28.8]} 26... g6 {[%clk 0:01:50.6]} 27. g3 {[%clk 0:01:20.5]}
27... Nb2 {[%clk 0:01:44.8]} 28. Ba6 {[%clk 0:01:06.5]} 28... Rxc3 {[%clk
0:01:43.9]} 29. Na5 {[%clk 0:01:02.7]} 29... d5 {[%clk 0:01:32.5]} 30. Bb7
{[%clk 0:00:34.3]} 30... d4 {[%clk 0:01:15.1]} 31. Nc6 {[%clk 0:00:32.9]} 31...
d3 {[%clk 0:01:02.4]} 32. Ra8+ {[%clk 0:00:28.7]} 32... Kg7 {[%clk 0:01:02]} 33.
Nxe7 {[%clk 0:00:28.5]} 33... d2 {[%clk 0:01:02.2]} 34. Rd8 {[%clk 0:00:16.6]}
34... d1=Q+ {[%clk 0:00:59.9]} 35. Rxd1 {[%clk 0:00:16.9]} 35... Nxd1 {[%clk
0:01:00.8]} 36. Nd5 {[%clk 0:00:15.9]} 36... Rc2 {[%clk 0:00:56.3]} 37. Ne3
{[%clk 0:00:13.4]} 37... Nxe3 {[%clk 0:00:53.9]} 38. fxe3 {[%clk 0:00:14.3]}
38... f5 {[%clk 0:00:52.9]} 39. h4 {[%clk 0:00:10.4]} 39... Rb2 {[%clk
0:00:52.5]} 40. Bf3 {[%clk 0:00:08.9]} 40... Kf6 {[%clk 0:00:52.7]} 41. Kf1
{[%clk 0:00:06.9]} 41... Ke7 {[%clk 0:00:52.5]} 42. h5 {[%clk 0:00:05.2]} 42...
g5 {[%clk 0:00:50.7]} 43. g4 {[%clk 0:00:03.3]} 43... f4 {[%clk 0:00:46.1]} 44.
e4 {[%clk 0:00:03.4]} 44... Kd6 {[%clk 0:00:45.2]} 45. Ke1 {[%clk 0:00:03.1]}
45... Kc5 {[%clk 0:00:45.1]} 46. Kf1 {[%clk 0:00:02]} 46... Kd4 {[%clk
0:00:44.9]} 47. Ke1 {[%clk 0:00:02.6]} 47... Ke3 {[%clk 0:00:44.5]} 48. Bd1
{[%clk 0:00:03.5]} 48... Rb1 {[%clk 0:00:42.2]} 0-1